bitfinex-derivatives/quotes_SOLF0:USTF0_20250409
["timestamp","ask_amount","ask_price","bid_price","bid_amount"]
[1744198119226,8.7977,104.92,104.85,0.06942065]
[1744198119535,8.7977,104.92,104.9,9.5373]
[1744198119725,8.7977,104.92,104.84,62.0]
[1744198120038,8.7977,104.92,104.83,9.169]
[1744198120537,0.06551142,104.89,104.86,0.06800551]
[1744198120728,0.06551142,104.89,104.88,9.5385]
[1744198121333,1.142e-05,104.89,104.88,9.5385]
[1744198121728,9.1233,104.95,104.87,4.5792]
[1744198122036,9.1233,104.95,104.92,9.5351]
[1744198122339,9.1233,104.95,104.93,9.5346]
[1744198122542,9.1233,104.95,104.88,4.5523]
[1744198122839,9.1233,104.95,104.92,9.5352]
[1744198123333,55.32,104.97,104.92,0.06409363]
[1744198124038,1.9054878,104.96,104.92,0.06409363]
[1744198124431,11.4254878,104.96,104.85,9.3373]
[1744198124631,0.06383985,104.95,104.85,9.3373]
[1744198124838,1.9054878,104.96,104.84,4.6662]
[1744198125043,9.5389,104.89,104.86,9.5409]
[1744198125340,55.32,104.89,104.82,4.4706]
[1744198125539,9.5393,104.88,104.86,0.06711401]
[1744198126234,9.60237432,104.88,104.86,0.06711401]
[1744198126437,9.5401,104.87,104.86,0.06711401]
[1744198126639,0.06307432,104.88,104.86,0.06711401]
[1744198127333,0.06307432,104.88,104.79,4.501]
[1744198127542,1.9071231,104.87,104.79,8.9475]
[1744198128539,0.067287,104.84,104.83,9.5431]
[1744198132642,8.7e-05,104.84,104.83,9.5431]
[1744198133349,1.9071231,104.87,104.86,9.5411]
[1744198135652,1.9071231,104.87,104.85,0.06160505]
[1744198136560,11.4479231,104.87,104.85,0.06160505]
[1744198136861,1.9071231,104.87,104.85,0.06160505]
[1744198137057,1.9071231,104.87,104.8,4.4551]
[1744198137259,9.5424,104.85,104.82,9.5446]
[1744198137460,64.8624,104.85,104.82,9.5446]
[1744198137762,55.32,104.85,104.8,4.4551]
[1744198138163,0.06767974,104.84,104.81,0.06042431]
[1744198138356,0.06767974,104.84,104.83,9.5438]
[1744198140763,0.06767974,104.84,104.82,9.5443]
[1744198140965,0.06767974,104.84,104.81,0.06042431]
[1744198141465,55.38767974,104.84,104.81,0.06042431]
[1744198141659,64.93097974,104.84,104.81,0.06042431]
[1744198142265,55.38767974,104.84,104.81,0.06042431]
[1744198142865,55.38767974,104.84,104.82,9.5444]
[1744198144264,55.38767974,104.84,104.81,0.06042431]
[1744198144963,64.93107974,104.84,104.81,9.60542431]
[1744198145165,55.38767974,104.84,104.81,0.06042431]
[1744198146268,55.38767974,104.84,104.83,9.5438]
[1744198146670,55.38767974,104.84,104.81,0.06042431]
[1744198147264,64.93097974,104.84,104.81,9.60562431]
[1744198147469,55.38767974,104.84,104.81,0.06042431]
[1744198147968,55.38767974,104.84,104.82,9.5447]
[1744198148169,0.06767974,104.84,104.81,0.06042431]
[1744198148366,0.06767974,104.84,104.82,9.5447]
[1744198148671,1.97534856,104.84,104.81,0.06042431]
[1744198148974,1.97534856,104.84,104.83,9.5438]
[1744198149470,1.97534856,104.84,104.81,0.06042431]
[1744198150163,1.97534856,104.84,104.81,9.60542431]
[1744198150364,1.97534856,104.84,104.81,0.06042431]
[1744198150564,1.97534856,104.84,104.82,9.5441]
[1744198151276,1.97534856,104.84,104.83,9.5438]
[1744198157178,1.97534856,104.84,104.82,4.6488]
[1744198157477,1.97534856,104.84,104.82,9.5442]
[1744198158074,1.97534856,104.84,104.83,9.5438]
[1744198159971,9.0915,104.89,104.81,0.06042431]
[1744198160173,9.0915,104.89,104.8,55.06]
[1744198160576,18.6303,104.89,104.86,9.5405]
[1744198161275,9.1514134,104.89,104.86,0.06972905]
[1744198161475,9.1514134,104.89,104.79,23.6943]
[1744198161685,9.0915,104.89,104.79,23.6943]
[1744198161877,9.0915,104.89,104.8,55.06]
[1744198162176,9.0915,104.89,104.85,9.5414]
[1744198162585,9.60778875,104.88,104.86,9.61181874]
[1744198162776,9.5393,104.88,104.86,9.541]
[1744198162977,9.60950577,104.88,104.86,9.60265045]
[1744198163985,0.07020577,104.88,104.86,0.06165045]
[1744198164383,9.60990577,104.88,104.86,9.60235045]
[1744198164586,0.07020577,104.88,104.86,0.06165045]
[1744198164984,9.61030577,104.88,104.86,0.06165045]
[1744198165786,0.07020577,104.88,104.86,9.60205045]
[1744198166579,0.07020577,104.88,104.86,0.06165045]
[1744198167083,0.07020577,104.88,104.87,9.5401]
[1744198167286,0.07020577,104.88,104.86,0.06165045]
[1744198167586,0.07020577,104.88,104.86,9.60215045]
[1744198169486,9.60950577,104.88,104.86,9.60215045]
[1744198170089,0.07020577,104.88,104.87,9.5401]
[1744198171884,0.07020577,104.88,104.86,9.60215045]
[1744198172388,0.07020577,104.88,104.87,9.5401]
[1744198175389,9.60980577,104.88,104.86,9.60235045]
[1744198176593,9.60980577,104.88,104.87,9.5401]
[1744198176792,9.60980577,104.88,104.86,0.06165045]
[1744198177087,9.5401,104.87,104.86,0.06165045]
[1744198178390,0.07020577,104.88,104.8,55.06]
[1744198178588,9.5422,104.85,104.8,55.06]
[1744198179190,9.5422,104.85,104.83,9.5433]
[1744198179487,37.7315,104.89,104.79,4.6001]
[1744198179690,0.06143551,104.85,104.83,0.06354206]
[1744198180289,0.06143551,104.85,104.84,9.5429]
[1744198184692,3.551e-05,104.85,104.84,9.5429]
[1744198184894,4.7426,104.9,104.83,19.15054206]
[1744198185199,4.7426,104.9,104.84,4.6882]
[1744198185798,4.7426,104.9,104.88,9.5386]
[1744198186098,0.06210748,104.88,104.86,0.06741542]
[1744198186489,0.06210748,104.88,104.87,9.54]
[1744198198110,54.86210748,104.88,104.86,0.06741542]
[1744198198497,54.86210748,104.88,104.81,8.8485]
[1744198198804,9.5414,104.86,104.81,8.8485]
[1744198199005,4.6918,104.87,104.81,4.4153]
[1744198199204,9.4761,104.87,104.78,59.2456]
[1744198199406,9.4761,104.87,104.79,1.90857906]
[1744198199905,0.06844071,104.84,104.82,0.0693964]
[1744198200104,0.06844071,104.84,104.83,9.5438]
[1744198200307,0.06844071,104.84,104.82,0.0693964]
[1744198200612,64.41194071,104.84,104.82,0.0693964]
[1744198200805,54.86844071,104.84,104.82,0.0693964]
[1744198201202,54.86844071,104.84,104.83,9.5438]
[1744198201396,4.071e-05,104.84,104.83,9.5438]
[1744198204207,59.5557,104.9,104.83,6.5372508]
[1744198204397,59.5557,104.9,104.84,1.90766882]
[1744198204707,54.8,104.9,104.84,1.90766882]
[1744198205502,54.8,104.9,104.88,9.5384]
[1744198205909,54.86437131,104.9,104.88,9.5384]
[1744198206109,54.86437131,104.9,104.86,0.06992341]
[1744198207312,9.5399,104.88,104.86,0.06992341]
[1744198207502,4.6569,104.89,104.86,0.06992341]
[1744198207703,4.6569,104.89,104.84,1.90766882]
[1744198208200,4.6569,104.89,104.79,4.5222]
[1744198208403,4.6569,104.89,104.77,168.5014812]
[1744198208603,28.64,104.87,104.77,168.5014812]
[1744198208798,558.26,104.86,104.82,0.06966013]
[1744198209010,558.26,104.86,104.77,168.5014812]
[1744198209011,0.06645668,104.84,104.77,168.5014812]
[1744198209199,0.06645668,104.84,104.78,19.0962]
[1744198209404,59.1969,104.89,104.78,54.54]
[1744198209612,59.1969,104.89,104.79,4.7424]
[1744198209815,59.1969,104.89,104.79,23.8367]
[1744198210110,68.7356,104.89,104.86,9.5407]
[1744198210508,0.07020778,104.85,104.84,9.5429]
[1744198210709,59.1969,104.89,104.86,0.06559054]
[1744198210914,0.06128468,104.86,104.85,9.542]
[1744198211113,59.1969,104.89,104.86,0.06535016]
[1744198211411,0.06812621,104.87,104.86,0.06535016]
[1744198211615,0.06812621,104.87,104.79,23.8367]
[1744198211807,59.1969,104.89,104.79,23.8367]
[1744198212014,68.7358,104.89,104.86,9.5404]
[1744198212615,59.1969,104.89,104.87,9.5401]
[1744198212817,59.26005091,104.89,104.87,9.5401]
[1744198213209,5.091e-05,104.89,104.88,9.5392]
[1744198213510,5.091e-05,104.89,104.83,54.54]
[1744198213511,5.091e-05,104.89,104.76,59.3443]
[1744198213705,9.53855091,104.89,104.81,19.0911]
[1744198213908,54.54,104.9,104.81,19.0911]
[1744198214113,4.4609,104.89,104.8,4.855]
[1744198214512,0.0631339,104.86,104.83,0.06215649]
[1744198215016,0.0631339,104.86,104.85,9.542]
[1744198215215,0.0631339,104.86,104.83,0.06215649]
[1744198215411,64.1450339,104.86,104.83,0.06215649]
[1744198215608,54.6031339,104.86,104.83,0.06215649]
[1744198217320,54.6031339,104.86,104.84,9.5429]
[1744198217819,54.6031339,104.86,104.83,0.06215649]
[1744198218023,0.0631339,104.86,104.83,0.06215649]
[1744198219022,0.0631339,104.86,104.85,9.542]
[1744198219326,3.39e-05,104.86,104.85,9.542]
[1744198219524,558.26,104.91,104.9,9.5374]
[1744198219724,54.54,104.91,104.9,9.5374]
[1744198221025,54.54,104.91,104.89,9.61082058]
[1744198221826,54.54,104.91,104.9,9.5374]
[1744198222023,0.06951254,104.92,104.89,0.07302058]
[1744198222327,0.06951254,104.92,104.91,9.5365]
[1744198222519,0.06951254,104.92,104.89,0.07302058]
[1744198222916,54.54,104.91,104.89,0.07302058]
[1744198223629,54.54,104.91,104.9,9.5374]
[1744198224022,0.06951254,104.92,104.91,9.5365]
[1744198224826,0.06951254,104.92,104.89,0.07302058]
[1744198225128,0.06951254,104.92,104.9,9.5371]
[1744198225927,0.06951254,104.92,104.89,0.07302058]
[1744198226128,9.5374,104.9,104.89,0.07302058]
[1744198226328,54.52,104.9,104.86,9.5403]
[1744198226521,54.52,104.9,104.83,13.7892]
[1744198226933,54.52,104.9,104.83,4.5493]
[1744198227131,4.7158,104.89,104.83,4.5493]
[1744198227524,0.06688444,104.87,104.85,0.07057666]
[1744198227833,0.06688444,104.87,104.86,9.5405]
[1744198228134,0.06688444,104.87,104.85,0.07057666]
[1744198228326,0.06688444,104.87,104.86,9.5411]
[1744198230437,8.444e-05,104.87,104.86,9.5411]
[1744198232335,63.5813,104.93,104.91,9.5358]
[1744198233634,63.64453927,104.93,104.91,9.59753483]
[1744198233934,63.64453927,104.93,104.91,0.06173483]
[1744198234333,63.64453927,104.93,104.84,9.6651]
[1744198234533,63.5813,104.93,104.84,9.6651]
[1744198235134,28.64,104.92,104.81,4.6998]
[1744198235335,387.64,104.92,104.79,28.6417]
[1744198235531,9.5417,104.86,104.85,0.06340215]
[1744198235731,64.0617,104.86,104.82,9.5444]
[1744198236029,54.52,104.86,104.78,58.9525]
[1744198236434,64.0612,104.86,104.83,9.5433]
[1744198236637,54.52,104.86,104.78,4.4325]
[1744198236937,54.58706554,104.86,104.83,0.0655148]
[1744198237238,9.5432,104.84,104.81,9.5455]
[1744198237431,54.52,104.86,104.78,4.4325]
[1744198238133,0.06398816,104.83,104.81,0.06809161]
[1744198239738,9.5447,104.82,104.81,0.06809161]
[1744198239939,0.06398816,104.83,104.81,0.06809161]
[1744198240340,0.06398816,104.83,104.81,9.61309161]
[1744198240540,0.06398816,104.83,104.81,0.06809161]
[1744198241037,0.06398816,104.83,104.82,9.5447]
[1744198242840,0.06398816,104.83,104.81,0.06809161]
[1744198243544,54.3,104.82,104.81,0.06809161]
[1744198243944,63.8447,104.82,104.81,0.06809161]
[1744198244154,54.3,104.82,104.81,0.06809161]
[1744198245153,54.3,104.82,104.78,9.548]
[1744198245348,63.5354,104.82,104.73,9.6842]
[1744198245549,68.3469,104.82,104.74,6.36979016]
[1744198245745,68.3469,104.82,104.76,9.5498]
[1744198246358,0.06533239,104.8,104.78,0.06070056]
[1744198247253,0.06533239,104.8,104.78,9.60850056]
[1744198247563,0.06533239,104.8,104.78,0.06070056]
[1744198247950,0.06533239,104.8,104.79,9.5474]
[1744198248643,0.06533239,104.8,104.78,9.60890056]
[1744198248951,0.06533239,104.8,104.78,0.06070056]
[1744198249158,0.06533239,104.8,104.79,9.5474]
[1744198252753,0.06533239,104.8,104.75,9.5505]
[1744198253153,9.548,104.79,104.75,9.5507]
[1744198253352,54.32,104.78,104.74,1.90949016]
[1744198253660,54.32,104.78,104.75,9.5509]
[1744198253860,54.32,104.78,104.74,1.90949016]
[1744198254062,54.38319776,104.78,104.75,0.06357227]
[1744198254265,54.38319776,104.78,104.75,9.61407227]
[1744198254463,54.38319776,104.78,104.75,0.06357227]
[1744198254663,63.93199776,104.78,104.75,9.61407227]
[1744198255757,9.5496,104.77,104.75,0.06357227]
[1744198255953,54.38319776,104.78,104.74,1.90949016]
[1744198256362,9.5505,104.76,104.74,1.90949016]
[1744198256565,54.38319776,104.78,104.74,1.90949016]
[1744198256772,4.4887,104.75,104.69,9.5559]
[1744198257062,58.8186,104.74,104.69,9.5559]
[1744198257259,58.8186,104.74,104.71,0.07072146]
[1744198257465,9.5542,104.72,104.71,0.07072146]
[1744198257662,0.06115114,104.73,104.62,1.66212924]
[1744198257860,0.06115114,104.73,104.63,4.489]
[1744198258066,591.4786,104.74,104.63,4.489]
[1744198258460,9.5589,104.67,104.63,4.489]
[1744198258959,0.06059449,104.66,104.64,9.62539494]
[1744198259161,0.06059449,104.66,104.64,0.06469494]
[1744198260155,63.8952,104.71,104.64,0.06469494]
[1744198260561,54.34,104.71,104.62,4.7558]
[1744198261074,591.4986,104.74,104.62,4.7558]
[1744198261367,4.4986,104.74,104.63,54.34]
[1744198261563,0.06772594,104.69,104.67,0.06793771]
[1744198261761,9.62452594,104.69,104.67,0.06793771]
[1744198261969,54.34,104.69,104.6,718.31573313]
[1744198262164,54.34,104.69,104.62,1.91168036]
[1744198262367,54.40416528,104.69,104.67,0.07057154]
[1744198262570,54.34,104.69,104.62,1.91168036]
[1744198262763,9.3882,104.68,104.63,9.5616]
[1744198262963,9.3882,104.68,104.62,1.91168036]
[1744198263768,9.3882,104.68,104.64,0.07108607]
[1744198263974,0.0629914,104.66,104.6,663.97573313]
[1744198264272,9.5639,104.61,104.6,663.97573313]
[1744198264468,63.9239,104.61,104.6,598.0883536]
[1744198264668,73.4839,104.61,104.6,205.16538103]
[1744198264875,73.4839,104.61,104.6,188.48238103]
[1744198265075,73.4839,104.61,104.6,155.89678103]
[1744198265370,73.4839,104.61,104.6,78.06489318]
[1744198265575,63.9239,104.61,104.6,78.06489318]
[1744198265967,54.36,104.61,104.6,78.06489318]
[1744198266269,0.06214984,104.62,104.6,78.06489318]
[1744198266573,0.06214984,104.62,104.61,9.5639]
[1744198267872,4.984e-05,104.62,104.61,9.5639]
[1744198269070,4.984e-05,104.62,104.6,9.5643]
[1744198269367,4.984e-05,104.62,104.59,0.07139755]
[1744198270978,504.56,104.7,104.59,54.16]
[1744198271277,0.07217363,104.66,104.63,0.06637205]
[1744198271570,0.07217363,104.66,104.59,54.16]
[1744198271776,54.16,104.67,104.63,0.06541215]
[1744198272163,0.06992466,104.64,104.63,0.06541215]
[1744198272479,0.06992466,104.64,104.63,9.62741215]
[1744198272682,0.06992466,104.64,104.63,0.06541215]
[1744198273077,0.06992466,104.64,104.63,9.62741215]
[1744198273571,558.72,104.7,104.64,9.5608]
[1744198273775,9.5579,104.68,104.64,9.5608]
[1744198274180,9.5585,104.67,104.62,9.5622]
[1744198274381,54.16,104.66,104.57,4.5431]
[1744198274679,54.16,104.65,104.63,0.0606756]
[1744198274877,54.16,104.65,104.61,9.5632]
[1744198275078,54.16,104.65,104.57,4.5431]
[1744198275079,54.2219516,104.65,104.63,0.06527065]
[1744198275379,9.5619,104.64,104.59,9.5653]
[1744198275574,54.22169831,104.65,104.57,4.5431]
[1744198275776,54.22169831,104.65,104.63,0.06119574]
[1744198275974,54.16,104.65,104.56,4.5478]
[1744198276177,54.22086455,104.65,104.63,0.0696446]
[1744198276379,54.16,104.65,104.56,4.5478]
[1744198276581,9.5634,104.62,104.56,4.5478]
[1744198276881,54.16,104.61,104.56,4.5478]
[1744198277082,54.16,104.61,104.6,9.5648]
[1744198277477,54.18,104.64,104.6,9.5648]
[1744198277682,0.06731848,104.62,104.6,9.5648]
[1744198278283,0.06731848,104.62,104.59,0.06149893]
[1744198278788,0.06731848,104.62,104.51,4.5282]
[1744198278789,543.06731848,104.62,104.51,4.5282]
[1744198278979,9.5696,104.55,104.51,4.5282]
[1744198279180,54.18,104.55,104.51,4.5282]
[1744198279886,54.18,104.55,104.49,4.5128]
[1744198280190,0.06033055,104.54,104.52,0.06381253]
[1744198280387,0.06033055,104.54,104.53,9.5712]
[1744198280972,0.06033055,104.54,104.52,0.06381253]
[1744198281173,330.76016461,104.54,104.52,0.06381253]
[1744198281386,330.76016461,104.54,104.47,1.29468228]
[1744198281584,330.76016461,104.54,104.47,3.20910747]
[1744198281789,9.5712,104.53,104.49,9.5744]
[1744198282285,835.65983406,104.54,104.47,1.91442519]
[1744198282476,376.88617885,104.53,104.47,1.91442519]
[1744198282681,376.88617885,104.53,104.39,19.1674]
[1744198282873,0.06742806,104.52,104.49,0.06601514]
[1744198283073,0.06742806,104.52,104.38,6.06314799]
[1744198283283,405.52617885,104.53,104.4,4.6688]
[1744198283694,28.64,104.51,104.38,4.397]
[1744198283884,396.02987885,104.53,104.38,4.397]
[1744198283885,417.7464,104.5,104.38,4.397]
[1744198284084,9.5774,104.47,104.43,9.5798]
[1744198284284,305.13586196,104.48,104.36,4.6203]
[1744198284588,0.06075308,104.45,104.42,9.5807]
[1744198284792,0.06075308,104.45,104.38,54.22]
[1744198284983,313.70558053,104.45,104.38,54.22]
[1744198285183,313.64482745,104.45,104.38,54.22]
[1744198285590,0.06372643,104.43,104.38,30.36903599]
[1744198285889,0.06372643,104.43,104.42,9.5813]
[1744198286092,313.64482745,104.45,104.38,30.36903599]
[1744198286391,313.64482745,104.45,104.43,9.5799]
[1744198286695,129.60088705,104.4,104.38,30.36903599]
[1744198286896,226.95941175,104.42,104.38,30.36903599]
[1744198287188,226.95941175,104.42,104.37,4.397]
[1744198287391,0.06995635,104.4,104.37,4.397]
[1744198288487,54.28995635,104.4,104.36,4.6203]
[1744198288686,54.28995635,104.4,104.36,6.53674308]
[1744198289086,54.28995635,104.4,104.37,9.5854]
[1744198289287,54.28995635,104.4,104.36,6.53674308]
[1744198289288,54.28995635,104.4,104.36,1.91644308]
[1744198289691,54.28995635,104.4,104.37,9.5851]
[1744198289990,54.28995635,104.4,104.36,1.91644308]
[1744198290497,0.06995635,104.4,104.36,1.91644308]
[1744198291387,5.635e-05,104.4,104.36,1.91644308]
[1744198291700,5.635e-05,104.4,104.39,9.584]
[1744198292394,5.635e-05,104.4,104.38,9.5845]
[1744198292596,5.635e-05,104.4,104.34,4.8244]
[1744198292802,5.635e-05,104.4,104.38,0.06908565]
[1744198293691,5.635e-05,104.4,104.39,9.584]
[1744198296496,58.23987429,104.44,104.43,9.5803]
[1744198297197,58.23987429,104.44,104.42,9.5812]
[1744198297395,9.5788,104.45,104.39,60.63749232]
[1744198297588,384.57767986,104.46,104.39,60.63749232]
[1744198297795,0.06420386,104.43,104.41,0.06970395]
[1744198298195,0.06420386,104.43,104.42,9.5813]
[1744198298403,3.86e-06,104.43,104.42,9.5813]
[1744198298801,3.86e-06,104.43,104.42,14.0905]
[1744198301604,384.57767986,104.46,104.45,9.5785]
[1744198302210,384.57767986,104.46,104.42,10.83584188]
[1744198302795,0.07097328,104.45,104.43,0.06266038]
[1744198303407,0.07097328,104.45,104.44,9.5794]
[1744198303594,353.72437986,104.46,104.43,0.06266038]
[1744198303795,323.93637986,104.46,104.45,9.5785]
[1744198303998,54.08,104.5,104.44,1.9149751]
[1744198304204,54.08,104.5,104.48,9.5754]
[1744198304807,54.15291701,104.5,104.48,0.06451758]
[1744198305800,63.73291701,104.5,104.44,1.9149751]
[1744198306009,4.4058,104.49,104.44,1.9149751]
[1744198306202,9.5775,104.47,104.44,1.9149751]
[1744198306505,54.08,104.46,104.44,1.9149751]
[1744198306708,63.6581,104.46,104.44,1.9149751]
[1744198307011,54.14558443,104.46,104.44,1.97631095]
[1744198307910,63.72368443,104.46,104.44,1.97631095]
[1744198308708,9.5785,104.45,104.44,1.97631095]
[1744198309207,9.5785,104.45,104.44,0.06133585]
[1744198309410,4.7126,104.45,104.44,0.06133585]
[1744198310905,14.2911,104.45,104.44,0.06133585]
[1744198311207,4.7126,104.45,104.44,0.06133585]
[1744198311608,4.7126,104.45,104.39,4.4416]
[1744198311806,510.4326,104.45,104.37,4.7634]
[1744198312006,9.5825,104.41,104.38,9.5844]
[1744198312613,9.5832,104.4,104.37,4.7634]
[1744198312812,54.08,104.42,104.34,9.0313]
[1744198313004,0.06145516,104.41,104.38,0.07315922]
[1744198313202,9.5834,104.4,104.38,0.07315922]
[1744198313405,0.06145516,104.41,104.38,0.07315922]
[1744198314116,28.64,104.4,104.34,1.91681042]
[1744198314317,4.8695,104.39,104.34,1.91681042]
[1744198314619,588.52,104.38,104.3,9.5918]
[1744198314804,9.589,104.34,104.3,9.5918]
[1744198315005,54.08,104.34,104.29,4.5751]
[1744198315316,63.6686,104.34,104.29,4.5751]
[1744198315503,0.06841853,104.33,104.31,0.02047512]
[1744198316710,0.06841853,104.33,104.28,167.54031032]
[1744198317117,9.5911,104.32,104.24,9.4895]
[1744198317318,0.06841853,104.33,104.24,9.4895]
[1744198317614,54.08,104.34,104.24,9.4895]
[1744198318020,0.06109429,104.3,104.24,9.4895]
[1744198318717,4.8695,104.39,104.24,19.0895]
[1744198318914,4.8695,104.39,104.26,0.06109429]
[1744198319219,363.8695,104.39,104.24,63.5895]
[1744198319414,392.5095,104.39,104.24,63.5895]
[1744198319719,363.8695,104.39,104.24,125.5895]
[1744198320017,0.06515459,104.33,104.3,0.06109429]
[1744198320420,54.12,104.37,104.24,125.5895]
[1744198320619,54.12,104.37,104.25,1.91846522]
[1744198320819,0.06226308,104.33,104.31,9.5909]
[1744198321015,0.06226308,104.33,104.3,0.06109429]
[1744198321220,0.06226308,104.33,104.25,1.91846522]
[1744198321417,0.06226308,104.33,104.31,9.5908]
[1744198321612,0.06226308,104.33,104.3,0.06109429]
[1744198321813,9.5878,104.35,104.3,9.65289429]
[1744198322019,54.12,104.37,104.3,0.06109429]
[1744198322221,0.06653949,104.33,104.3,0.06109429]
[1744198322518,0.06653949,104.33,104.3,9.5917]
[1744198322722,0.06653949,104.33,104.3,0.06109429]
[1744198323014,0.06653949,104.33,104.32,9.5904]
[1744198323216,54.12,104.37,104.3,0.06109429]
[1744198323410,4.8695,104.39,104.3,0.06109429]
[1744198323411,588.86,104.36,104.3,0.06109429]
[1744198323616,588.86,104.36,104.25,11.51486522]
[1744198323810,588.86,104.36,104.25,1.91846522]
[1744198324018,9.596,104.26,104.25,1.91846522]
[1744198324222,63.716,104.26,104.25,1.91846522]
[1744198324419,54.12,104.26,104.24,0.0671316]
[1744198325025,54.12,104.26,104.24,9.6645316]
[1744198325323,54.12,104.26,104.24,0.0671316]
[1744198326326,63.7163,104.26,104.24,0.0671316]
[1744198326626,54.12,104.26,104.24,0.0671316]
[1744198326825,9.5969,104.25,104.24,0.0671316]
[1744198327323,54.12,104.26,104.24,0.0671316]
[1744198327725,54.12,104.26,104.23,0.3073255]
[1744198327928,9.5969,104.25,104.23,0.3073255]
[1744198328127,54.12,104.26,104.23,0.3073255]
[1744198328825,9.5973,104.25,104.23,0.3073255]
[1744198329125,54.12,104.26,104.23,0.36782768]
[1744198329528,9.5975,104.25,104.23,0.36782768]
[1744198330529,54.12,104.26,104.23,0.36782768]
[1744198330739,0.07211449,104.27,104.23,0.36782768]
[1744198332036,9.6015,104.2,104.19,0.41737032]
[1744198332236,63.5815,104.2,104.19,0.41737032]
[1744198333034,9.6038,104.18,104.16,0.8732336]
[1744198333240,53.98,104.2,104.16,0.8732336]
[1744198334133,9.6043,104.17,104.16,0.8732336]
[1744198334443,0.06513326,104.19,104.16,0.8732336]
[1744198334742,0.06513326,104.19,104.12,0.47628566]
[1744198334938,0.06513326,104.19,104.12,16.5776462]
[1744198335138,0.06513326,104.19,104.12,2.3971462]
[1744198335442,560.52,104.23,104.13,1.92067607]
[1744198335639,0.06823369,104.17,104.13,1.92067607]
[1744198335833,54.06823369,104.17,104.13,1.92067607]
[1744198336138,9.6069,104.15,104.13,1.92067607]
[1744198336341,506.68,104.16,104.13,1.92067607]
[1744198336543,506.68,104.16,104.12,0.47628566]
[1744198337837,506.68,104.16,104.12,8.566e-05]
[1744198338246,359.0,104.15,104.05,0.45069719]
[1744198338546,387.64,104.15,104.05,0.45069719]
[1744198338844,9.6116,104.09,104.05,10.06539719]
[1744198339037,63.6316,104.09,104.05,0.45069719]
[1744198339443,54.02,104.09,104.05,0.45069719]
[1744198339637,54.02,104.15,104.06,4.6071]
[1744198339844,63.6269,104.15,104.07,4.6477]
[1744198340142,0.07304777,104.1,104.07,9.4894]
[1744198340444,9.6084,104.13,104.1,9.6104]
[1744198340639,54.02,104.15,104.07,9.4894]
[1744198340840,0.07219288,104.1,104.07,9.4894]
[1744198341046,9.6084,104.13,104.09,9.6116]
[1744198341341,0.06127202,104.1,104.07,9.4894]
[1744198341541,54.02,104.15,104.07,9.4894]
[1744198341838,54.02,104.15,104.08,2.39500273]
[1744198342042,9.608,104.13,104.08,12.00690273]
[1744198342445,54.02,104.15,104.08,2.39500273]
[1744198342640,54.02,104.15,104.09,1.92141416]
[1744198342944,0.06863827,104.12,104.09,1.98410592]
[1744198343640,0.06863827,104.12,104.1,9.6101]
[1744198344248,0.06863827,104.12,104.11,9.6098]
[1744198344747,54.02,104.15,104.13,9.6074]
[1744198345047,54.02,104.15,104.09,1.98410592]
[1744198345239,63.6265,104.15,104.09,1.92141416]
[1744198345445,54.02,104.15,104.09,1.92141416]
[1744198345741,63.6266,104.15,104.09,1.92141416]
[1744198345945,54.02,104.15,104.09,1.92141416]
[1744198346145,0.06616542,104.13,104.11,0.07304036]
[1744198346347,0.06616542,104.13,104.12,9.6089]
[1744198346645,0.06616542,104.13,104.11,0.07304036]
[1744198347244,0.06616542,104.13,104.08,0.47340396]
[1744198347450,0.06616542,104.13,104.05,0.45069719]
[1744198347948,0.1305,104.14,104.05,0.45069719]
[1744198348644,9.6121,104.09,104.08,0.05929849]
[1744198348851,63.6521,104.09,104.08,0.05929849]
[1744198349145,54.04,104.09,104.01,0.48252827]
[1744198349347,561.2,104.09,104.01,0.48252827]
[1744198349744,54.04,104.09,104.01,0.48252827]
[1744198349946,54.06,104.12,104.01,0.48252827]
[1744198350644,0.07102898,104.08,104.01,0.48252827]
[1744198350844,561.36,104.07,104.01,0.48252827]
[1744198351552,0.06449668,104.05,104.01,0.48252827]
[1744198351853,9.6181,104.02,104.01,0.48252827]
[1744198352144,54.06,104.02,103.98,0.45214108]
[1744198352650,0.07198942,104.01,103.98,0.45214108]
[1744198354544,9.62,104.0,103.98,0.45214108]